fUSD/lending_fUSD_20250401
["ID","MTS","AMOUNT","RATE_DAILY","PERIOD"]
[356986424,1743527441121,-383.65521888,0.000265,2]
[356986425,1743527441131,-1426.55570425,0.000265,2]
[356986426,1743527441140,-328.73088797,0.00026567,2]
[356986427,1743527441150,-160.88,0.00026849,2]
[356986428,1743527441160,-157.42,0.00026849,2]
[356986429,1743527441169,-154.83,0.00026849,2]
[356986430,1743527441179,-250.0,0.00027,2]
[356986431,1743527441189,-1000.0,0.00027327,2]
[356986432,1743527441201,-170.42,0.00027397,2]
[356986433,1743527441211,-1000.0,0.00027629,5]
[356986434,1743527441220,-200.0,0.00028115,2]
[356986435,1743527441231,-4151.7892879,0.00028301,2]
[356986436,1743527441241,-9248.2462889,0.00028301,2]
[356986437,1743527441250,-200.0,0.00028396,2]
[356986438,1743527441259,-200.0,0.0002868,2]
[356986439,1743527441269,-200.0,0.00028967,2]
[356986440,1743527441278,-300.0,0.00029,2]
[356986441,1743527441287,-200.0,0.00029257,2]
[356986442,1743527441297,-1000.0,0.0003006,2]
[356986443,1743527441307,-383.65521888,0.000304,2]
[356986444,1743527441316,-1426.55570425,0.000304,2]
[356986445,1743527441325,-161.99,0.00030428,2]
[356986446,1743527441335,-350.0,0.00031,2]
[356986447,1743527441345,-1333.49,0.00031826,2]
[356986448,1743527441354,-715.49370541,0.00032,2]
[356986449,1743527441364,-328.73088797,0.000324,2]
[356986450,1743527441373,-160.88,0.00032646,2]
[356986451,1743527441384,-1000.0,0.00032792,2]
[356986452,1743527441395,-170.42,0.00032877,2]
[356986453,1743527441405,-158.32,0.00032932,120]
[356986454,1743527441414,-400.0,0.00033,2]
[356986455,1743527441424,-150.0,0.00033065,2]
[356986456,1743527441434,-150.0,0.00033094,2]
[356986457,1743527441444,-180.52142571,0.00033128,2]
[356986458,1743527441454,-150.0,0.00033166,2]
[356986459,1743527441464,-150.0,0.00033172,2]
[356986460,1743527441473,-150.0,0.00033275,2]
[356986461,1743527441484,-702.70843656,0.00033283,5]
[356986462,1743527441493,-150.0,0.00033313,2]
[356986463,1743527441504,-150.0,0.00033325,2]
[356986464,1743527441513,-157.42,0.00033328,2]
[356986465,1743527441522,-150.0,0.00033437,2]
[356986466,1743527441532,-2000.0,0.000335,2]
[356986467,1743527441541,-1679.0,0.000335,2]
[356986468,1743527441550,-1074.10857429,0.00034222,2]
[356986469,1743527441560,-150.9,0.0003427,2]
[356986470,1743527441570,-8689.70176948,0.0003428,7]
[356986471,1743527441579,-15692.32381516,0.0003428,2]
[356986472,1743527441589,-621.37860057,0.0003428,2]
[356986473,1743527441599,-205.55746673,0.0003428,2]
[356986474,1743527441609,-7761.7810508,0.0003428,2]
[356986475,1743527441618,-4366.84756459,0.0003428,2]
[356986476,1743527441628,-4702.95586478,0.0003428,2]
[356986477,1743527441638,-2626.96017035,0.0003428,2]
[356986478,1743527441800,-2000.0,0.0003428,2]
[356986479,1743527441812,-891.71045665,0.0003428,7]
[356986480,1743527441823,-868.96027023,0.0003428,2]
[356986481,1743527441834,-6590.54615795,0.0003428,2]
[356986482,1743527441844,-150.0,0.00034286,2]
[356986483,1743527441854,-383.65521888,0.000343,2]
[356986484,1743527441864,-1426.55570425,0.000343,2]
[356986485,1743527441874,-1500.0,0.00034498,5]
[356986486,1743527441884,-1494.24272827,0.00034498,5]
[356986487,1743527441893,-500.0,0.00034498,5]
[356986488,1743527441903,-2000.0,0.00034574,4]
[356986489,1743527441913,-450.0,0.00035,2]
[356986490,1743527441923,-466.76,0.00035068,2]
[356986491,1743527441933,-2000.0,0.000362,2]
[356986492,1743527441942,-1679.0,0.000362,2]
[356986493,1743527441952,-500.0,0.00037,2]
[356986494,1743527441962,-161.39,0.00037,2]
[356986495,1743527441972,-12969.56550274,0.000372,103]
[356986496,1743527441983,-12969.56550271,0.000372,103]
[356986497,1743527441994,-12969.56550271,0.000372,103]
[356986498,1743527442004,-502.20816352,0.00037648,5]
[356986499,1743527442013,-458.0,0.0003772,5]
[356986500,1743527442023,-154.83,0.00037863,2]
[356986501,1743527442033,-383.65521888,0.000382,2]
[356986502,1743527442043,-1426.55570425,0.000382,2]
[356986503,1743527442052,-328.73088797,0.00038233,2]
[356986504,1743527442062,-160.88,0.00038443,2]
[356986505,1743527442073,-1083.091,0.00038525,52]
[356986506,1743527442083,-550.0,0.00039,2]
[356986507,1743527442093,-1042.0,0.00039,2]
[356986508,1743527442104,-158.32,0.00039089,120]
[356986509,1743527442113,-3949.0,0.0003921,2]
[356986510,1743527442123,-151.0,0.0003921,2]
[356986511,1743527442132,-1017.0,0.0003921,2]
[356986512,1743527442142,-157.42,0.00039807,2]
[356986513,1743527442151,-255.8400042,0.0004,2]
[356986514,1743527442162,-783.26,0.0004019,2]
[356986515,1743527442172,-444.31,0.0004019,2]
[356986516,1743527442185,-347.21,0.00040327,2]
[356986517,1743527442196,-209.52,0.00040327,2]
[356986518,1743527442206,-221.11,0.00040327,2]
[356986519,1743527442217,-194.85,0.00040327,2]
[356986520,1743527442228,-455.01,0.00040327,2]
[356986521,1743527442238,-153.61,0.00040327,2]
[356986522,1743527442248,-693.76,0.00040327,2]
[356986523,1743527442259,-150.0,0.00040327,2]
[356986524,1743527442269,-347.21,0.00040327,2]
[356986525,1743527442279,-150.0,0.00040327,2]
[356986526,1743527442289,-346.77,0.00040327,2]
[356986527,1743527442300,-600.0,0.00041,2]
[356986528,1743527442311,-12969.56550271,0.00041125,120]
[356986529,1743527442322,-1026.71,0.0004114,30]
[356986530,1743527442332,-347.21,0.0004114,30]
[356986531,1743527442342,-150.0,0.00041154,30]
[356986532,1743527442352,-150.0,0.00041154,30]
[356986533,1743527442361,-150.0,0.00041154,30]
[356986534,1743527442371,-150.0,0.00041154,30]
[356986535,1743527442381,-1566.05,0.00041154,30]
[356986536,1743527442390,-347.21,0.00041154,30]
[356986538,1743527442400,-1042.0,0.000417,2]
[356986540,1743527442411,-150.0,0.00041997,3]
[356986541,1743527442421,-150.0,0.00041997,3]
[356986542,1743527442430,-3054.20360137,0.00042,120]
[356986543,1743527442440,-1466.62,0.00042,120]
[356986544,1743527442450,-383.65521888,0.000421,15]
[356986545,1743527442460,-1426.55570425,0.000421,15]
[356986546,1743527442470,-3949.0,0.0004221,2]
[356986547,1743527442481,-151.0,0.0004221,2]
[356986549,1743527442491,-1017.0,0.0004221,2]
[356986550,1743527442501,-1283.0,0.00042669,2]
[356986551,1743527442511,-2040.0,0.00042669,2]
[356986552,1743527442521,-643.0,0.00042669,2]
[356986553,1743527442530,-153.067,0.00042669,2]
[356986554,1743527442540,-1365.0,0.00042669,2]
[356986555,1743527442550,-712.22,0.00042669,2]
[356986556,1743527442560,-1275.0,0.00042669,2]
[356986557,1743527442569,-789.0,0.00042669,2]
[356986558,1743527442579,-543.0,0.00042669,2]
[356986559,1743527442589,-4092.0,0.00042669,2]
[356986560,1743527442599,-1433.0,0.00042669,2]
[356986561,1743527442609,-908.0,0.00042669,2]
[356986563,1743527442620,-150.0,0.00042933,10]
[356986565,1743527442630,-650.0,0.00043,2]
[356986567,1743527442640,-250.0,0.00043481,10]
[356986569,1743527442654,-350.0,0.00044029,10]
[356986571,1743527442665,-328.73088797,0.00044067,14]
[356986573,1743527442675,-160.88,0.00044239,2]
[356986575,1743527442685,-450.0,0.00044577,10]
[356986577,1743527442695,-64296.37232323,0.00045,2]
[356986579,1743527442705,-550.0,0.00045125,10]
[356986581,1743527442715,-3949.0,0.0004521,2]
[356986583,1743527442726,-151.0,0.0004521,2]
[356986584,1743527442737,-1017.0,0.0004521,2]
[356986585,1743527442747,-158.32,0.00045247,120]
[356986586,1743527442757,-934.68,0.00045286,2]
[356986587,1743527442766,-150.0,0.00045323,30]
[356986588,1743527442777,-1283.0,0.00045669,2]
[356986589,1743527442788,-2040.0,0.00045669,2]
[356986590,1743527442799,-643.0,0.00045669,2]
[356986591,1743527442809,-1365.0,0.00045669,2]
[356986592,1743527442820,-573.0,0.00045669,2]
[356986593,1743527442830,-1275.0,0.00045669,2]
[356986594,1743527442840,-789.0,0.00045669,2]
[356986595,1743527442850,-543.0,0.00045669,2]
[356986596,1743527442861,-4088.0,0.00045669,2]
[356986597,1743527442872,-1433.0,0.00045669,2]
[356986598,1743527442883,-908.0,0.00045669,2]
[356986599,1743527442897,-369.26739442,0.00045673,10]
[356986600,1743527442908,-383.65521888,0.00046,15]
[356986601,1743527442918,-1426.55570425,0.00046,15]
[356986602,1743527442928,-153.93,0.0004609,2]
[356986603,1743527442938,-153.93,0.0004611,2]
[356986604,1743527442948,-153.93,0.00046131,2]
[356986605,1743527442958,-153.93,0.00046152,2]
[356986606,1743527442968,-153.93,0.00046173,2]
[356986607,1743527442978,-153.93,0.00046194,2]
[356986608,1743527442988,-153.93,0.00046215,2]
[356986609,1743527442998,-153.93,0.00046236,2]
[356986610,1743527443009,-153.93,0.00046257,2]
[356986611,1743527443020,-153.93,0.00046278,2]
[356986612,1743527443030,-157.42,0.00046285,2]
[356986613,1743527443041,-153.93,0.00046299,2]
[356986614,1743527443051,-466.76,0.00046301,2]
[356986615,1743527443062,-153.93,0.0004632,2]
[356986616,1743527443073,-243.41972913,0.000466,30]
[356986617,1743527443084,-150.0,0.000466,30]
[356986618,1743527443094,-191.05962404,0.000466,30]
[356986619,1743527443105,-222.67409878,0.000466,30]
[356986620,1743527443115,-195.22373627,0.000466,30]
[356986621,1743527443126,-150.0,0.00046937,7]
[356986622,1743527443136,-150.0,0.00046939,7]
[356986623,1743527443146,-150.0,0.00046944,7]
[356986624,1743527443157,-150.0,0.00046948,7]
[356986625,1743527443167,-150.0,0.00046949,7]
[356986626,1743527443178,-150.0,0.0004695,7]
[356986627,1743527443190,-150.0,0.00046956,7]
[356986629,1743527443203,-155.19,0.00046967,2]
[356986631,1743527443213,-150.0,0.00046977,7]
[356986633,1743527443223,-150.0,0.00046989,7]
[356986635,1743527443233,-150.0,0.00046993,7]
[356986637,1743527443245,-150.0,0.00047072,7]
[356986639,1743527443254,-150.0,0.00047093,7]
[356986641,1743527443264,-150.0,0.00047122,7]
[356986643,1743527443275,-150.0,0.00047163,7]
[356986645,1743527443285,-150.0,0.00047178,7]
[356986647,1743527443296,-150.0,0.00047185,7]
[356986649,1743527443305,-150.0,0.000472,7]
[356986651,1743527443316,-150.0,0.00047202,7]
[356986653,1743527443326,-185.16,0.00047203,120]
[356986654,1743527443336,-478.18,0.00047203,120]
[356986656,1743527443346,-150.0,0.00047334,7]
[356986658,1743527443355,-2000.0,0.00047472,10]
[356986659,1743527443367,-934.68,0.00047549,2]
[356986661,1743527443376,-5225.60980294,0.000476,2]
[356986662,1743527443386,-150.9,0.0004799,2]
[356986663,1743527443396,-2700.0,0.00048,60]
[356986664,1743527443406,-21694.05367281,0.00048,35]
[356986665,1743527443416,-7671.95345452,0.00048,120]
[356986666,1743527443426,-103604.35829651,0.00048,2]
[356986667,1743527443436,-1000.0,0.00048,2]
[356986668,1743527443445,-1000.0,0.00048,2]
[356986669,1743527443455,-719.1530383,0.00048,2]
[356986670,1743527443465,-152.0,0.00048002,3]
[356986671,1743527443475,-167.4902408,0.00048164,120]
[356986672,1743527443485,-885.206,0.0004821,2]
[356986673,1743527443495,-151.0,0.0004821,2]
[356986674,1743527443504,-1017.0,0.0004821,2]
[356986675,1743527443514,-59.0,0.0004849,30]
[356986676,1743527443523,-36691.9826225,0.000485,3]
[356986677,1743527443534,-2500.0,0.000486,100]
[356986678,1743527443544,-166.66,0.00048649,2]
[356986679,1743527443554,-1283.0,0.00048669,2]
[356986680,1743527443564,-2038.0,0.00048669,2]
[356986681,1743527443573,-643.0,0.00048669,2]
[356986682,1743527443583,-1362.429,0.00048669,2]
[356986683,1743527443593,-1273.0,0.00048669,2]
[356986684,1743527443602,-789.0,0.00048669,2]
[356986685,1743527443612,-1083.533,0.00048669,2]
[356986686,1743527443622,-908.0,0.00048669,2]
[356986687,1743527443631,-155.19,0.00048801,2]
[356986688,1743527443641,-154.83,0.00048877,2]
[356986689,1743527443652,-544.59987726,0.00048904,120]
[356986690,1743527443663,-465.10010659,0.00048999,2]
[356986691,1743527443673,-41900.58289736,0.00049,2]
[356986692,1743527443683,-154.81,0.000492,45]
[356986693,1743527443693,-154.81,0.000492,45]
[356986694,1743527443703,-154.81,0.000492,45]
[356986695,1743527443713,-154.81,0.000492,45]
[356986696,1743527443723,-222.4034628,0.00049215,10]
[356986697,1743527443733,-1364.12155502,0.00049215,2]
[356986698,1743527443743,-223.72303904,0.00049215,2]
[356986699,1743527443754,-150.9,0.00049305,120]
[356986700,1743527443763,-500.0,0.00049315,120]
[356986701,1743527443773,-500.0,0.00049315,5]
[356986702,1743527443783,-500.0,0.00049315,2]
[356986703,1743527443793,-531.39593444,0.00049315,120]
[356986704,1743527443802,-500.0,0.00049315,120]
[356986705,1743527443811,-265.56408135,0.00049315,120]
[356986706,1743527443821,-500.0,0.00049315,2]
[356986707,1743527443830,-453.0,0.00049315,120]
[356986708,1743527443840,-513.26692079,0.00049315,120]
[356986709,1743527443850,-500.0,0.00049315,120]
[356986710,1743527443860,-500.0,0.00049315,120]
[356986711,1743527443869,-1205.55,0.00049315,120]
[356986712,1743527443879,-181.7,0.00049315,120]
[356986713,1743527443888,-500.0,0.00049315,120]
[356986714,1743527443899,-500.0,0.00049315,120]
[356986715,1743527443908,-500.0,0.00049315,120]
[356986716,1743527443918,-1536.52,0.00049315,2]
[356986717,1743527443928,-500.0,0.00049315,120]
[356986718,1743527443937,-500.0,0.00049315,120]
[356986719,1743527443947,-500.0,0.00049315,60]
[356986720,1743527443957,-500.0,0.00049315,120]
[356986721,1743527443966,-500.0,0.00049315,120]
[356986722,1743527443975,-500.0,0.00049315,120]
[356986723,1743527443985,-500.0,0.00049315,120]
[356986724,1743527443994,-500.0,0.00049315,120]
[356986725,1743527444004,-198.70316953,0.00049315,120]
[356986726,1743527444013,-500.0,0.00049315,120]
[356986727,1743527444023,-500.0,0.00049315,120]
[356986728,1743527444032,-500.0,0.00049315,120]
[356986729,1743527444042,-315.48961,0.00049315,120]
[356986730,1743527444051,-9424.191625,0.00049315,120]
[356986731,1743527444061,-500.0,0.00049315,120]
[356986732,1743527444070,-500.0,0.00049315,120]
[356986733,1743527444079,-500.0,0.00049315,120]
[356986734,1743527444089,-500.0,0.00049315,2]
[356986735,1743527444099,-500.0,0.00049315,120]
[356986736,1743527444108,-500.0,0.00049315,120]
[356986737,1743527444117,-233.28618752,0.00049315,120]
[356986738,1743527444126,-698.18,0.00049315,120]
[356986739,1743527444135,-500.0,0.00049315,120]
[356986740,1743527444145,-500.0,0.00049315,120]
[356986741,1743527444154,-157.956745,0.00049315,120]
[356986742,1743527444163,-500.0,0.00049315,120]
[356986743,1743527444172,-500.0,0.00049315,120]
[356986744,1743527444182,-500.0,0.00049315,120]
[356986745,1743527444195,-500.0,0.00049315,120]
[356986746,1743527444205,-500.0,0.00049315,120]
[356986747,1743527444214,-500.0,0.00049315,120]
[356986748,1743527444224,-500.0,0.00049315,120]
[356986749,1743527444234,-500.0,0.00049315,120]
[356986750,1743527444243,-500.0,0.00049315,120]
[356986751,1743527444252,-165.9053894,0.00049315,120]
[356986752,1743527444261,-500.0,0.00049315,120]
[356986753,1743527444271,-500.0,0.00049315,2]
[356986754,1743527444280,-500.0,0.00049315,120]
[356986755,1743527444289,-500.0,0.00049315,2]
[356986756,1743527444299,-500.0,0.00049315,2]
[356986757,1743527444308,-500.0,0.00049315,120]
[356986758,1743527444318,-500.0,0.00049315,120]
[356986759,1743527444327,-500.0,0.00049315,120]
[356986760,1743527444337,-390.22009381,0.00049315,120]
[356986761,1743527444346,-500.0,0.00049315,120]
[356986762,1743527444356,-500.0,0.00049315,2]
[356986763,1743527444367,-500.0,0.00049315,120]
[356986764,1743527444377,-500.0,0.00049315,120]
[356986765,1743527444386,-500.0,0.00049315,120]
[356986766,1743527444396,-500.0,0.00049315,120]
[356986767,1743527444405,-500.0,0.00049315,120]
[356986768,1743527444414,-500.0,0.00049315,120]
[356986769,1743527444424,-1603.29,0.00049315,120]
[356986770,1743527444433,-500.0,0.00049315,120]
[356986771,1743527444442,-480.14745807,0.00049315,120]
[356986772,1743527444453,-457.78216068,0.00049315,120]
[356986773,1743527444463,-500.0,0.00049315,120]
[356986774,1743527444473,-326.23576602,0.00049315,120]
[356986775,1743527444604,-500.0,0.00049315,120]
[356986776,1743527444615,-500.0,0.00049315,120]
[356986777,1743527444625,-1026.81,0.00049315,30]
[356986778,1743527444635,-514.77101198,0.00049315,120]
[356986779,1743527444646,-500.0,0.00049315,120]
[356986780,1743527444658,-500.0,0.00049315,120]
[356986781,1743527444668,-500.0,0.00049315,120]
[356986782,1743527444678,-480.16121582,0.00049315,120]
[356986783,1743527444688,-500.0,0.00049315,120]
[356986784,1743527444698,-298.440976,0.00049315,120]
[356986785,1743527444707,-500.0,0.00049315,120]
[356986786,1743527444717,-500.0,0.00049315,120]
[356986787,1743527444727,-500.0,0.00049315,120]
[356986788,1743527444736,-2273.32,0.00049315,120]
[356986789,1743527444747,-500.0,0.00049315,120]
[356986790,1743527444756,-500.0,0.00049315,120]
[356986791,1743527444766,-500.0,0.00049315,120]
[356986792,1743527444776,-500.0,0.00049315,2]
[356986793,1743527444786,-771.14,0.00049315,120]
[356986794,1743527444796,-500.0,0.00049315,120]
[356986795,1743527444806,-500.0,0.00049315,120]
[356986796,1743527444816,-500.0,0.00049315,120]
[356986797,1743527444826,-515.43654182,0.00049315,120]
[356986798,1743527444835,-500.0,0.00049315,120]
[356986799,1743527444845,-500.0,0.00049315,120]
[356986800,1743527444855,-500.0,0.00049315,120]
[356986801,1743527444866,-500.0,0.00049315,120]
[356986802,1743527444876,-500.0,0.00049315,120]
[356986803,1743527444886,-500.0,0.00049315,120]
[356986804,1743527444895,-500.0,0.00049315,30]
[356986805,1743527444906,-500.0,0.00049315,120]
[356986806,1743527444916,-500.0,0.00049315,120]
[356986807,1743527444925,-611.6920946,0.00049315,120]
[356986808,1743527444935,-500.0,0.00049315,120]
[356986809,1743527444945,-500.0,0.00049315,120]
[356986810,1743527444954,-500.0,0.00049315,120]
[356986811,1743527444964,-500.0,0.00049315,120]
[356986812,1743527444975,-500.0,0.00049315,120]
[356986813,1743527444984,-500.0,0.00049315,120]
[356986814,1743527444996,-500.0,0.00049315,120]
[356986815,1743527445006,-500.0,0.00049315,120]
[356986816,1743527445015,-500.0,0.00049315,120]
[356986817,1743527445025,-500.0,0.00049315,120]
[356986818,1743527445035,-500.0,0.00049315,120]
[356986819,1743527445045,-490.01206337,0.00049315,120]
[356986820,1743527445055,-500.0,0.00049315,120]
[356986821,1743527445065,-500.0,0.00049315,120]
[356986822,1743527445075,-500.0,0.00049315,120]
[356986823,1743527445085,-346.78539797,0.00049315,120]
[356986824,1743527445095,-500.0,0.00049315,120]
[356986825,1743527445104,-500.0,0.00049315,120]
[356986826,1743527445113,-500.0,0.00049315,120]
[356986827,1743527445123,-500.0,0.00049315,120]
[356986828,1743527445132,-505.31549447,0.00049315,120]
[356986829,1743527445142,-510.22809064,0.00049315,120]
[356986830,1743527445154,-500.0,0.00049315,120]
[356986831,1743527445163,-500.0,0.00049315,120]
[356986832,1743527445172,-500.0,0.00049315,120]
[356986833,1743527445182,-500.0,0.00049315,120]
[356986834,1743527445194,-500.0,0.00049315,120]
[356986835,1743527445203,-500.0,0.00049315,120]
[356986836,1743527445214,-500.0,0.00049315,120]
[356986837,1743527445223,-500.0,0.00049315,120]
[356986838,1743527445233,-500.0,0.00049315,120]
[356986839,1743527445245,-500.0,0.00049315,120]
[356986840,1743527445255,-500.0,0.00049315,120]
[356986841,1743527445264,-500.0,0.00049315,120]
[356986842,1743527445275,-500.0,0.00049315,120]
[356986843,1743527445284,-500.0,0.00049315,120]
[356986844,1743527445294,-500.0,0.00049315,120]
[356986845,1743527445303,-500.0,0.00049315,120]
[356986846,1743527445313,-500.0,0.00049315,120]
[356986847,1743527445323,-500.0,0.00049315,120]
[356986848,1743527445333,-500.0,0.00049315,120]
[356986849,1743527445343,-500.0,0.00049315,120]
[356986850,1743527445353,-1000.0,0.00049315,120]
[356986851,1743527445363,-500.0,0.00049315,120]
[356986852,1743527445374,-500.0,0.00049315,120]
[356986853,1743527445383,-500.0,0.00049315,120]
[356986854,1743527445393,-500.0,0.00049315,120]
[356986855,1743527445405,-500.0,0.00049315,120]
[356986857,1743527445415,-500.0,0.00049315,120]
[356986859,1743527445425,-500.0,0.00049315,120]
[356986861,1743527445435,-500.0,0.00049315,120]
[356986863,1743527445446,-500.0,0.00049315,120]
[356986865,1743527445455,-500.0,0.00049315,120]
[356986867,1743527445465,-500.0,0.00049315,120]
[356986869,1743527445475,-500.0,0.00049315,120]
[356986871,1743527445485,-500.0,0.00049315,120]
[356986873,1743527445496,-502.37341912,0.00049315,120]
[356986875,1743527445508,-500.0,0.00049315,120]
[356986877,1743527445518,-500.0,0.00049315,120]
[356986881,1743527445528,-500.0,0.00049315,120]
[356986883,1743527445538,-500.0,0.00049315,120]
[356986885,1743527445549,-500.0,0.00049315,120]
[356986886,1743527445560,-280.811991,0.00049315,120]
[356986887,1743527445570,-500.0,0.00049315,120]
[356986888,1743527445579,-500.0,0.00049315,120]
[356986889,1743527445589,-500.0,0.00049315,120]
[356986890,1743527445599,-500.0,0.00049315,120]
[356986891,1743527445609,-500.0,0.00049315,120]
[356986892,1743527445620,-500.0,0.00049315,120]
[356986893,1743527445631,-500.0,0.00049315,120]
[356986894,1743527445640,-500.0,0.00049315,120]
[356986895,1743527445652,-500.0,0.00049315,120]
[356986896,1743527445662,-500.0,0.00049315,120]
[356986897,1743527445671,-500.0,0.00049315,120]
[356986898,1743527445681,-500.0,0.00049315,120]
[356986899,1743527445691,-500.0,0.00049315,120]
[356986900,1743527445701,-500.0,0.00049315,120]
[356986901,1743527445711,-500.0,0.00049315,120]
[356986902,1743527445721,-500.0,0.00049315,120]
[356986903,1743527445731,-500.0,0.00049315,120]
[356986904,1743527445742,-500.0,0.00049315,120]
[356986905,1743527445752,-500.0,0.00049315,120]
[356986906,1743527445762,-500.0,0.00049315,120]
[356986907,1743527445772,-500.0,0.00049315,120]
[356986908,1743527445782,-500.0,0.00049315,120]
[356986909,1743527445791,-157.744805,0.00049315,120]
[356986910,1743527445801,-500.0,0.00049315,120]
[356986911,1743527445811,-500.0,0.00049315,120]
[356986912,1743527445822,-500.0,0.00049315,120]
[356986913,1743527445831,-188.99385826,0.00049315,120]
[356986914,1743527445841,-500.0,0.00049315,120]
[356986915,1743527445850,-500.0,0.00049315,120]
[356986916,1743527445860,-500.0,0.00049315,120]
[356986917,1743527445870,-500.0,0.00049315,120]
[356986918,1743527445880,-500.0,0.00049315,120]
[356986919,1743527445890,-500.0,0.00049315,120]
[356986920,1743527445902,-500.0,0.00049315,120]
[356986921,1743527445912,-500.0,0.00049315,120]
[356986922,1743527445922,-500.0,0.00049315,120]
[356986923,1743527445932,-500.0,0.00049315,120]
[356986924,1743527445943,-500.0,0.00049315,120]
[356986925,1743527445952,-500.0,0.00049315,120]
[356986926,1743527445962,-500.0,0.00049315,120]
[356986927,1743527445972,-500.0,0.00049315,120]
[356986928,1743527445981,-512.30648983,0.00049315,120]
[356986929,1743527445991,-500.0,0.00049315,120]
[356986930,1743527446000,-500.0,0.00049315,120]
[356986931,1743527446010,-500.0,0.00049315,120]
[356986932,1743527446019,-458.17765062,0.00049315,120]
[356986933,1743527446029,-500.0,0.00049315,10]
[356986934,1743527446039,-500.0,0.00049315,120]
[356986935,1743527446048,-500.0,0.00049315,120]
[356986936,1743527446057,-181.99703388,0.00049315,120]
[356986937,1743527446066,-510.54035169,0.00049315,120]
[356986938,1743527446076,-500.0,0.00049315,120]
[356986939,1743527446086,-500.0,0.00049315,120]
[356986940,1743527446095,-500.0,0.00049315,120]
[356986941,1743527446105,-500.0,0.00049315,120]
[356986942,1743527446115,-521.91541651,0.00049315,120]
[356986943,1743527446125,-500.0,0.00049315,120]
[356986944,1743527446135,-500.0,0.00049315,120]
[356986945,1743527446145,-500.0,0.00049315,120]
[356986946,1743527446155,-354.76763997,0.00049315,120]
[356986947,1743527446165,-500.0,0.00049315,120]
[356986949,1743527446174,-500.0,0.00049315,120]
[356986950,1743527446185,-632.86032089,0.00049315,120]
[356986951,1743527446197,-500.0,0.00049315,120]
[356986952,1743527446207,-225.43563271,0.00049315,120]
[356986953,1743527446217,-500.0,0.00049315,120]
[356986954,1743527446227,-500.0,0.00049315,120]
[356986955,1743527446238,-500.0,0.00049315,120]
[356986956,1743527446247,-500.0,0.00049315,120]
[356986957,1743527446258,-500.0,0.00049315,120]
[356986958,1743527446268,-1070.39,0.00049315,120]
[356986959,1743527446279,-508.68933925,0.00049315,120]
[356986960,1743527446289,-500.0,0.00049315,120]
[356986961,1743527446300,-500.0,0.00049315,120]
[356986962,1743527446310,-500.0,0.00049315,120]
[356986963,1743527446320,-500.0,0.00049315,120]
[356986964,1743527446330,-500.000001,0.00049315,120]
[356986965,1743527446340,-500.0,0.00049315,10]
[356986966,1743527446350,-511.6024768,0.00049315,120]
[356986967,1743527446360,-500.0,0.00049315,120]
[356986968,1743527446370,-500.0,0.00049315,120]
[356986969,1743527446379,-500.0,0.00049315,120]
[356986970,1743527446389,-500.0,0.00049315,120]